{"text_format":"1","workbook":"xlsx","n_sheets":2,"sheets":["ESSAI2","ORI"],"not_rendered":{"charts":0,"images":0,"macros":0,"external_links":0,"defined_names":3,"comments":0,"pivot_tables":0},"unopened":[],"bounds":{"document_bytes":16777216,"sheet_cells":100000,"rows_first":2000,"rows_last":500,"rows_between":2000,"halvings":0,"cell_chars":16384,"cell_head_chars":4096},"cells_cut":0,"cells_raw":0,"read":"whole","date_system":"1900"}

{"sheet":"ESSAI2","index":0,"n_rows":14,"n_cols":36,"rows_kept":14,"cut":false,"hidden":false,"merged":[]}
[]
[]
[]
[]
[]
[null,null,null,null,null,null,null,null,null,null,null,null,null,null,null,null,null,null,null,null,null,null,null,null,null,null,null,null,null,"a",1,4,{"$f":"AE6-AF6","v":-3},{"$f":"IF(AE6<AF6,AG6,\"\")","v":-3},null,{"$f":"INDEX(AD1:AD14,SUMPRODUCT(N(IF((AG6:AG14=_xlfn.AGGREGATE(14,6,$AG$6:$AG$14/($AG$6:$AG$14<0),1))*(AF6:AF14=_xlfn.AGGREGATE(14,6,$AF$6:$AF$14/(_xlfn.AGGREGATE(14,6,$AG$6:$AG$14/($AG$6:$AG$14<0),1)=$AG$6:$AG$14),1)),ROW(AD6:AD14)))),)","v":"c"}]
[null,null,null,null,null,null,null,null,null,null,null,null,null,null,null,null,null,null,null,null,null,null,null,null,null,null,null,null,null,"b",13,12,{"$f":"AE7-AF7","v":1},{"$f":"IF(AE7<AF7,AG7,\"\")","v":""}]
[null,null,null,null,null,null,null,null,null,null,null,null,null,null,null,null,null,null,null,null,null,null,null,null,null,null,null,null,null,"c",9,10,-1,-1]
[null,null,null,null,null,null,null,null,null,null,null,null,null,null,null,null,null,null,null,null,null,null,null,null,null,null,null,null,null,"d",null,null,0,""]
[null,null,null,null,null,null,null,null,null,null,null,null,null,null,null,null,null,null,null,null,null,null,null,null,null,null,null,null,null,"e",null,null,0,""]
[null,null,null,null,null,null,null,null,null,null,null,null,null,null,null,null,null,null,null,null,null,null,null,null,null,null,null,null,null,"f",5,10,-5,-5]
[null,null,null,null,null,null,null,null,null,null,null,null,null,null,null,null,null,null,null,null,null,null,null,null,null,null,null,null,null,"g",null,null,0,""]
[null,null,null,null,null,null,null,null,null,null,null,null,null,null,null,null,null,null,null,null,null,null,null,null,null,null,null,null,null,"h",12,10,2,""]
[null,null,null,null,null,null,null,null,null,null,null,null,null,null,null,null,null,null,null,null,null,null,null,null,null,null,null,null,null,"i",null,null,0,""]

{"sheet":"ORI","index":1,"n_rows":14,"n_cols":41,"rows_kept":14,"cut":false,"hidden":false,"merged":[[7,35,13,38]]}
[]
[]
[]
[]
[]
[null,null,null,null,null,null,null,null,null,null,null,null,null,null,null,null,null,null,null,null,null,null,null,null,null,null,null,null,null,"a",1,4,{"$f":"AE6-AF6","v":-3},{"$f":"IF(AE6<AF6,AG6,\"\")","v":-3},null,{"$f":"IF(AF6=LARGE(IF($AG$6:$AG$14=MAX(IF($AG$6:$AG$14<0,$AG$6:$AG$14)),$AF$6:$AF$14),1),AD6,\"\")","v":""},null,null,null,null,{"$f":"AF6=LARGE(IF($AG$6:$AG$14=MAX(IF($AG$6:$AG$14<0,$AG$6:$AG$14)),$AF$6:$AF$14),1)","v":false}]
[null,null,null,null,null,null,null,null,null,null,null,null,null,null,null,null,null,null,null,null,null,null,null,null,null,null,null,null,null,"b",null,null,{"$f":"AE7-AF7","v":0},{"$f":"IF(AE7<AF7,AG7,\"\")","v":""}]
[null,null,null,null,null,null,null,null,null,null,null,null,null,null,null,null,null,null,null,null,null,null,null,null,null,null,null,null,null,"c",9,10,-1,-1,null,"AH8 & AH11 sont sélectionnées et pourtant pas d'égalité.                         AD8, AD11 & AD13 sélectionnées à cause de l'égalité de AF."]
[null,null,null,null,null,null,null,null,null,null,null,null,null,null,null,null,null,null,null,null,null,null,null,null,null,null,null,null,null,"d",null,null,0,""]
[null,null,null,null,null,null,null,null,null,null,null,null,null,null,null,null,null,null,null,null,null,null,null,null,null,null,null,null,null,"e",null,null,0,""]
[null,null,null,null,null,null,null,null,null,null,null,null,null,null,null,null,null,null,null,null,null,null,null,null,null,null,null,null,null,"f",5,10,-5,-5]
[null,null,null,null,null,null,null,null,null,null,null,null,null,null,null,null,null,null,null,null,null,null,null,null,null,null,null,null,null,"g",null,null,0,""]
[null,null,null,null,null,null,null,null,null,null,null,null,null,null,null,null,null,null,null,null,null,null,null,null,null,null,null,null,null,"h",12,10,2,""]
[null,null,null,null,null,null,null,null,null,null,null,null,null,null,null,null,null,null,null,null,null,null,null,null,null,null,null,null,null,"i",null,null,0,""]